[Event "Titled Tuesday Blitz January 10 Late 2023"]
[White "Riff, Vincent"]
[Black "Nasuta, Grzegorz"]
[WhiteFideId "617776"]
[BlackFideId "1141686"]
[WhiteElo "2383"]
[BlackElo "2552"]
[Result "0-1"]
[Round "02"]
[TimeControl "180+2"]
[Date "2023.01.10"]
[WhiteClock "0:00:44"]
[BlackClock "0:00:09"]

1. e4 {[%clk 0:00:00]}  c5 {[%clk 0:00:00]} 2. Nc3 {[%clk 0:03:00]}  a6 {[%clk 0:03:00]} 3. Nf3 {[%clk 0:03:00]}  d6 {[%clk 0:02:59]} 4. d4 {[%clk 0:02:59]}  cxd4 {[%clk 0:02:58]} 5. Nxd4 {[%clk 0:03:00]}  e6 {[%clk 0:02:59]} 6. Be3 {[%clk 0:02:59]}  Nf6 {[%clk 0:02:58]} 7. Be2 {[%clk 0:02:59]}  Be7 {[%clk 0:02:55]} 8. O-O {[%clk 0:02:59]}  O-O {[%clk 0:02:53]} 9. a4 {[%clk 0:02:56]}  Nc6 {[%clk 0:02:53]} 10. Kh1 {[%clk 0:02:55]}  Qc7 {[%clk 0:02:52]} 11. f4 {[%clk 0:02:55]}  Bd7 {[%clk 0:02:29]} 12. Bg1 {[%clk 0:02:54]}  Nxd4 {[%clk 0:02:28]} 13. Qxd4 {[%clk 0:02:51]}  Bc6 {[%clk 0:02:28]} 14. Bf3 {[%clk 0:02:50]}  Rfe8 {[%clk 0:02:27]} 15. Rad1 {[%clk 0:02:42]}  Nd7 {[%clk 0:02:19]} 16. Qf2 {[%clk 0:02:42]}  Bf6 {[%clk 0:02:02]} 17. Qg3 {[%clk 0:02:36]}  Nf8 {[%clk 0:01:58]} 18. Rfe1 {[%clk 0:02:36]}  Rad8 {[%clk 0:01:51]} 19. Rd3 {[%clk 0:02:30]}  b5 {[%clk 0:01:43]} 20. axb5 {[%clk 0:02:19]}  axb5 {[%clk 0:01:32]} 21. Red1 {[%clk 0:02:18]}  b4 {[%clk 0:01:33]} 22. Ne2 {[%clk 0:02:18]}  Bb5 {[%clk 0:01:33]} 23. Rb3 {[%clk 0:02:18]}  Qxc2 {[%clk 0:01:23]} 24. Nd4 {[%clk 0:01:58]}  Bxd4 {[%clk 0:01:20]} 25. Bxd4 {[%clk 0:01:50]}  e5 {[%clk 0:01:11]} 26. Rxb4 {[%clk 0:01:50]}  exd4 {[%clk 0:01:11]} 27. Rxb5 {[%clk 0:01:35]}  Rxe4 {[%clk 0:00:41]} 28. h3 {[%clk 0:01:35]}  d3 {[%clk 0:00:42]} 29. Rd5 {[%clk 0:01:24]}  Re6 {[%clk 0:00:21]} 30. R5xd3 {[%clk 0:01:14]}  Qxb2 {[%clk 0:00:13]} 31. f5 {[%clk 0:01:13]}  Rf6 {[%clk 0:00:13]} 32. Rxd6 {[%clk 0:01:13]}  Rdxd6 {[%clk 0:00:14]} 33. Rxd6 {[%clk 0:01:08]}  Qb8 {[%clk 0:00:14]} 34. Rxf6 {[%clk 0:01:09]}  Qxg3 {[%clk 0:00:14]} 35. Rc6 {[%clk 0:00:54]}  Qf4 {[%clk 0:00:14]} 36. Rc8 {[%clk 0:00:54]}  Qxf5 {[%clk 0:00:12]} 37. Bg4 {[%clk 0:00:52]}  Qf6 {[%clk 0:00:11]} 38. Bf3 {[%clk 0:00:53]}  g6 {[%clk 0:00:10]} 39. Rc7 {[%clk 0:00:53]}  Ne6 {[%clk 0:00:09]} 40. Rc8+ {[%clk 0:00:53]}  Kg7 {[%clk 0:00:09]} 41. Rc1 {[%clk 0:00:53]}  Qf4 {[%clk 0:00:10]} 42. Rf1 {[%clk 0:00:53]}  h5 {[%clk 0:00:10]} 43. Be2 {[%clk 0:00:50]}  Qe5 {[%clk 0:00:10]} 44. Bc4 {[%clk 0:00:51]}  h4 {[%clk 0:00:10]} 45. Ba2 {[%clk 0:00:50]}  Nf4 {[%clk 0:00:09]} 46. Bb1 {[%clk 0:00:50]}  f5 {[%clk 0:00:10]} 47. Bc2 {[%clk 0:00:44]}  Ne2 {[%clk 0:00:09]} 0-1


[Site "https://www.chess.com"]

[Event "Titled Tuesday Blitz January 10 Late 2023"]
[White "Musovic, Armin"]
[Black "Tanenbaum, Zachary"]
[WhiteFideId "939935"]
[BlackFideId "2060850"]
[WhiteElo "2261"]
[BlackElo "2261"]
[Result "0-1"]
[Round "02"]
[TimeControl "180+2"]
[Date "2023.01.10"]
[WhiteClock "0:00:24"]
[BlackClock "0:00:14"]

1. a3 {[%clk 0:00:00]}  e5 {[%clk 0:00:00]} 2. Nc3 {[%clk 0:02:57]}  d5 {[%clk 0:02:58]} 3. d4 {[%clk 0:02:58]}  e4 {[%clk 0:02:57]} 4. Bf4 {[%clk 0:02:59]}  Nf6 {[%clk 0:02:45]} 5. Be5 {[%clk 0:02:58]}  c6 {[%clk 0:02:40]} 6. e3 {[%clk 0:02:55]}  Bd6 {[%clk 0:02:32]} 7. Bxd6 {[%clk 0:02:52]}  Qxd6 {[%clk 0:02:27]} 8. h3 {[%clk 0:02:48]}  Bf5 {[%clk 0:02:26]} 9. Nge2 {[%clk 0:02:47]}  Nbd7 {[%clk 0:02:22]} 10. g4 {[%clk 0:02:46]}  Bg6 {[%clk 0:02:21]} 11. Nf4 {[%clk 0:02:43]}  Nf8 {[%clk 0:02:17]} 12. g5 {[%clk 0:02:44]}  N6d7 {[%clk 0:01:59]} 13. h4 {[%clk 0:02:31]}  Ne6 {[%clk 0:01:59]} 14. Nxe6 {[%clk 0:02:31]}  fxe6 {[%clk 0:01:58]} 15. Bh3 {[%clk 0:02:24]}  O-O {[%clk 0:01:53]} 16. Qg4 {[%clk 0:02:24]}  Bf5 {[%clk 0:01:48]} 17. Qg2 {[%clk 0:02:18]}  e5 {[%clk 0:01:45]} 18. O-O-O {[%clk 0:02:19]}  exd4 {[%clk 0:01:42]} 19. Rxd4 {[%clk 0:02:14]}  Bxh3 {[%clk 0:01:41]} 20. Rxh3 {[%clk 0:02:09]}  Qe6 {[%clk 0:01:39]} 21. h5 {[%clk 0:02:06]}  Rxf2 {[%clk 0:01:36]} 22. Qxf2 {[%clk 0:01:59]}  Qxh3 {[%clk 0:01:30]} 23. b4 {[%clk 0:01:54]}  Rf8 {[%clk 0:01:31]} 24. Qd2 {[%clk 0:01:42]}  Ne5 {[%clk 0:01:29]} 25. g6 {[%clk 0:01:43]}  hxg6 {[%clk 0:01:22]} 26. hxg6 {[%clk 0:01:22]}  Nf3 {[%clk 0:01:17]} 27. Qd1 {[%clk 0:01:20]}  Nxd4 {[%clk 0:01:14]} 28. Qxd4 {[%clk 0:01:12]}  Qf1+ {[%clk 0:01:14]} 29. Kb2 {[%clk 0:01:13]}  b6 {[%clk 0:01:14]} 30. Nxd5 {[%clk 0:01:13]}  Re8 {[%clk 0:01:05]} 31. Nf4 {[%clk 0:01:09]}  Qb5 {[%clk 0:00:26]} 32. a4 {[%clk 0:00:53]}  Qe5 {[%clk 0:00:18]} 33. Kc3 {[%clk 0:00:41]}  c5 {[%clk 0:00:18]} 34. bxc5 {[%clk 0:00:39]}  bxc5 {[%clk 0:00:16]} 35. Qxe5 {[%clk 0:00:36]}  Rxe5 {[%clk 0:00:17]} 36. Kc4 {[%clk 0:00:35]}  Kf8 {[%clk 0:00:18]} 37. Kb5 {[%clk 0:00:36]}  Ke7 {[%clk 0:00:16]} 38. c4 {[%clk 0:00:33]}  Rf5 {[%clk 0:00:16]} 39. Nd5+ {[%clk 0:00:33]}  Rxd5 {[%clk 0:00:13]} 40. cxd5 {[%clk 0:00:29]}  Kd6 {[%clk 0:00:13]} 41. Kc4 {[%clk 0:00:29]}  a5 {[%clk 0:00:13]} 42. Kb5 {[%clk 0:00:24]}  Kxd5 {[%clk 0:00:13]} 43. Kxa5 {[%clk 0:00:25]}  Kc6 {[%clk 0:00:14]} 44. Ka6 {[%clk 0:00:26]}  c4 {[%clk 0:00:14]} 45. a5 {[%clk 0:00:23]}  c3 {[%clk 0:00:15]} 46. Ka7 {[%clk 0:00:22]}  c2 {[%clk 0:00:15]} 47. a6 {[%clk 0:00:22]}  c1=Q {[%clk 0:00:15]} 48. Ka8 {[%clk 0:00:23]}  Qb2 {[%clk 0:00:15]} 49. Ka7 {[%clk 0:00:24]}  Qb6+ {[%clk 0:00:14]} 0-1


[Site "https://www.chess.com"]

[Event "Titled Tuesday Blitz January 10 Late 2023"]
[White "Atakishiyev, Elmar"]
[Black "Berezin, Viktor"]
[WhiteFideId "13410547"]
[BlackFideId "14107872"]
[WhiteElo "2363"]
[BlackElo "2307"]
[Result "1-0"]
[Round "02"]
[TimeControl "180+2"]
[Date "2023.01.10"]
[WhiteClock "0:01:25"]
[BlackClock "0:01:19"]

1. e4 {[%clk 0:00:00]}  c6 {[%clk 0:00:00]} 2. d4 {[%clk 0:03:00]}  d5 {[%clk 0:02:59]} 3. e5 {[%clk 0:02:57]}  Bf5 {[%clk 0:02:58]} 4. Nf3 {[%clk 0:02:57]}  e6 {[%clk 0:02:57]} 5. Be2 {[%clk 0:02:56]}  c5 {[%clk 0:02:57]} 6. O-O {[%clk 0:02:52]}  Nd7 {[%clk 0:02:53]} 7. c3 {[%clk 0:02:51]}  Ne7 {[%clk 0:02:51]} 8. Nbd2 {[%clk 0:02:51]}  h6 {[%clk 0:02:51]} 9. Re1 {[%clk 0:02:49]}  Nc6 {[%clk 0:02:51]} 10. Nf1 {[%clk 0:02:49]}  Rc8 {[%clk 0:02:51]} 11. Ng3 {[%clk 0:02:49]}  Bh7 {[%clk 0:02:50]} 12. Be3 {[%clk 0:02:45]}  Be7 {[%clk 0:02:50]} 13. a3 {[%clk 0:02:46]}  cxd4 {[%clk 0:02:50]} 14. cxd4 {[%clk 0:02:44]}  O-O {[%clk 0:02:46]} 15. b4 {[%clk 0:02:44]}  f6 {[%clk 0:02:42]} 16. exf6 {[%clk 0:02:38]}  Bxf6 {[%clk 0:02:34]} 17. Rc1 {[%clk 0:02:28]}  Qe7 {[%clk 0:02:19]} 18. Bd3 {[%clk 0:02:24]}  Bxd3 {[%clk 0:02:17]} 19. Qxd3 {[%clk 0:02:24]}  a6 {[%clk 0:02:06]} 20. Nh5 {[%clk 0:02:25]}  b5 {[%clk 0:02:03]} 21. Qg6 {[%clk 0:02:24]}  Qf7 {[%clk 0:01:51]} 22. Qg4 {[%clk 0:01:34]}  Kh8 {[%clk 0:01:41]} 23. Nf4 {[%clk 0:01:32]}  e5 {[%clk 0:01:38]} 24. Ng6+ {[%clk 0:01:27]}  Kh7 {[%clk 0:01:29]} 25. Nxf8+ {[%clk 0:01:27]}  Rxf8 {[%clk 0:01:29]} 26. Rxc6 {[%clk 0:01:27]}  exd4 {[%clk 0:01:19]} 27. Bxd4 {[%clk 0:01:25]} 1-0


[Site "https://www.chess.com"]

[Event "Titled Tuesday Blitz January 10 Late 2023"]
[White "Winterberg, Lukas"]
[Black "Klukin, Kirill"]
[WhiteFideId "24622702"]
[BlackFideId "24199273"]
[WhiteElo "2402"]
[BlackElo "2390"]
[Result "0-1"]
[Round "02"]
[TimeControl "180+2"]
[Date "2023.01.10"]
[WhiteClock "0:00:16"]
[BlackClock "0:00:09"]

1. d4 {[%clk 0:00:00]}  Nf6 {[%clk 0:00:00]} 2. Nf3 {[%clk 0:03:00]}  e6 {[%clk 0:02:59]} 3. Bf4 {[%clk 0:03:01]}  d5 {[%clk 0:02:59]} 4. e3 {[%clk 0:03:01]}  Bd6 {[%clk 0:02:58]} 5. Ne5 {[%clk 0:03:01]}  b6 {[%clk 0:02:59]} 6. Nd2 {[%clk 0:03:00]}  Bb7 {[%clk 0:02:56]} 7. Bd3 {[%clk 0:02:58]}  c5 {[%clk 0:02:56]} 8. c3 {[%clk 0:02:57]}  Nc6 {[%clk 0:02:55]} 9. Qa4 {[%clk 0:02:56]}  Bxe5 {[%clk 0:02:55]} 10. dxe5 {[%clk 0:02:46]}  Nd7 {[%clk 0:02:38]} 11. Bg3 {[%clk 0:02:42]}  c4 {[%clk 0:02:38]} 12. Be2 {[%clk 0:02:42]}  O-O {[%clk 0:02:26]} 13. Nf3 {[%clk 0:02:35]}  Qc7 {[%clk 0:01:56]} 14. Qc2 {[%clk 0:02:29]}  Ncxe5 {[%clk 0:01:48]} 15. Ng5 {[%clk 0:02:23]}  g6 {[%clk 0:01:29]} 16. O-O-O {[%clk 0:02:17]}  Qd8 {[%clk 0:01:29]} 17. h4 {[%clk 0:02:02]}  Qe7 {[%clk 0:01:24]} 18. f4 {[%clk 0:02:02]}  Nd3+ {[%clk 0:01:20]} 19. Bxd3 {[%clk 0:01:54]}  cxd3 {[%clk 0:01:20]} 20. Qxd3 {[%clk 0:01:51]}  Nc5 {[%clk 0:01:21]} 21. Qc2 {[%clk 0:01:50]}  f6 {[%clk 0:01:21]} 22. Nf3 {[%clk 0:01:45]}  Ne4 {[%clk 0:01:17]} 23. Be1 {[%clk 0:01:44]}  Rac8 {[%clk 0:01:10]} 24. h5 {[%clk 0:01:44]}  g5 {[%clk 0:00:49]} 25. Nd2 {[%clk 0:01:42]}  Nc5 {[%clk 0:00:49]} 26. Nb3 {[%clk 0:01:18]}  Ne4 {[%clk 0:00:31]} 27. Nd2 {[%clk 0:01:08]}  f5 {[%clk 0:00:26]} 28. Nxe4 {[%clk 0:00:57]}  fxe4 {[%clk 0:00:24]} 29. Bg3 {[%clk 0:00:56]}  Ba6 {[%clk 0:00:25]} 30. fxg5 {[%clk 0:00:49]}  Qxg5 {[%clk 0:00:22]} 31. Bf4 {[%clk 0:00:46]}  Rxf4 {[%clk 0:00:23]} 32. exf4 {[%clk 0:00:47]}  Qxf4+ {[%clk 0:00:11]} 33. Kb1 {[%clk 0:00:48]}  Bd3 {[%clk 0:00:11]} 34. Rxd3 {[%clk 0:00:48]}  exd3 {[%clk 0:00:08]} 35. Qxd3 {[%clk 0:00:42]}  Rf8 {[%clk 0:00:09]} 36. a3 {[%clk 0:00:43]}  Qf5 {[%clk 0:00:09]} 37. Kc2 {[%clk 0:00:40]}  Qxd3+ {[%clk 0:00:09]} 38. Kxd3 {[%clk 0:00:40]}  Rf2 {[%clk 0:00:08]} 39. b4 {[%clk 0:00:41]}  Rxg2 {[%clk 0:00:07]} 40. Kd4 {[%clk 0:00:34]}  Kf7 {[%clk 0:00:07]} 41. a4 {[%clk 0:00:34]}  Rg4+ {[%clk 0:00:07]} 42. Kd3 {[%clk 0:00:33]}  Kf6 {[%clk 0:00:07]} 43. Rf1+ {[%clk 0:00:33]}  Ke7 {[%clk 0:00:07]} 44. Rh1 {[%clk 0:00:32]}  a5 {[%clk 0:00:08]} 45. Rb1 {[%clk 0:00:30]}  Rh4 {[%clk 0:00:08]} 46. bxa5 {[%clk 0:00:27]}  bxa5 {[%clk 0:00:07]} 47. Rb7+ {[%clk 0:00:23]}  Kf6 {[%clk 0:00:08]} 48. Rxh7 {[%clk 0:00:23]}  Rxa4 {[%clk 0:00:07]} 49. h6 {[%clk 0:00:23]}  Rh4 {[%clk 0:00:08]} 50. Ra7 {[%clk 0:00:22]}  Rxh6 {[%clk 0:00:08]} 51. Rxa5 {[%clk 0:00:23]}  Ke5 {[%clk 0:00:07]} 52. Ra8 {[%clk 0:00:24]}  Rh3+ {[%clk 0:00:08]} 53. Kc2 {[%clk 0:00:24]}  Ke4 {[%clk 0:00:08]} 54. Re8 {[%clk 0:00:24]}  e5 {[%clk 0:00:08]} 55. Re7 {[%clk 0:00:25]}  Rh2+ {[%clk 0:00:08]} 56. Kb3 {[%clk 0:00:26]}  Rh5 {[%clk 0:00:08]} 57. Rd7 {[%clk 0:00:26]}  Rh6 {[%clk 0:00:09]} 58. Kc2 {[%clk 0:00:25]}  Rb6 {[%clk 0:00:09]} 59. Rd8 {[%clk 0:00:24]}  Rc6 {[%clk 0:00:09]} 60. Kd2 {[%clk 0:00:23]}  Rc7 {[%clk 0:00:09]} 61. Rd6 {[%clk 0:00:23]}  Rf7 {[%clk 0:00:10]} 62. Kc2 {[%clk 0:00:22]}  Rf2+ {[%clk 0:00:10]} 63. Kb3 {[%clk 0:00:22]}  Rf3 {[%clk 0:00:11]} 64. Kc2 {[%clk 0:00:23]}  Rg3 {[%clk 0:00:12]} 65. Rd8 {[%clk 0:00:23]}  Rg1 {[%clk 0:00:12]} 66. Rd7 {[%clk 0:00:23]}  Rg6 {[%clk 0:00:12]} 67. Rd8 {[%clk 0:00:22]}  Rc6 {[%clk 0:00:11]} 68. Kd2 {[%clk 0:00:22]}  Rc5 {[%clk 0:00:12]} 69. Rd7 {[%clk 0:00:23]}  Ra5 {[%clk 0:00:12]} 70. Kc2 {[%clk 0:00:22]}  Ke3 {[%clk 0:00:12]} 71. Re7 {[%clk 0:00:22]}  e4 {[%clk 0:00:12]} 72. Kb3 {[%clk 0:00:21]}  Kd3 {[%clk 0:00:13]} 73. Rd7 {[%clk 0:00:21]}  Rc5 {[%clk 0:00:12]} 74. Kb4 {[%clk 0:00:18]}  Rc4+ {[%clk 0:00:09]} 75. Kb5 {[%clk 0:00:18]}  Rxc3 {[%clk 0:00:10]} 76. Rxd5+ {[%clk 0:00:17]}  Kc2 {[%clk 0:00:08]} 77. Re5 {[%clk 0:00:17]}  e3 {[%clk 0:00:08]} 78. Kb4 {[%clk 0:00:16]}  Kd2 {[%clk 0:00:09]} 79. Rd5+ {[%clk 0:00:17]}  Rd3 {[%clk 0:00:09]} 80. Re5 {[%clk 0:00:17]}  e2 {[%clk 0:00:09]} 81. Kc4 {[%clk 0:00:15]}  Rd8 {[%clk 0:00:10]} 82. Re8 {[%clk 0:00:16]}  Rxe8 {[%clk 0:00:09]} 0-1


[Site "https://www.chess.com"]

[Event "Titled Tuesday Blitz January 10 Late 2023"]
[White "Kaplan, Avi Harrison"]
[Black "Bazeev, German"]
[WhiteFideId "30934559"]
[BlackFideId "24119350"]
[WhiteElo "2146"]
[BlackElo "2369"]
[Result "1-0"]
[Round "02"]
[TimeControl "180+2"]
[Date "2023.01.10"]
[WhiteClock "0:00:02"]
[BlackClock "0:00:05"]

1. Nf3 {[%clk 0:00:00]}  Nf6 {[%clk 0:00:00]} 2. g3 {[%clk 0:02:59]}  d5 {[%clk 0:02:59]} 3. Bg2 {[%clk 0:02:58]}  c6 {[%clk 0:02:59]} 4. O-O {[%clk 0:02:59]}  Bg4 {[%clk 0:03:00]} 5. b3 {[%clk 0:02:59]}  Nbd7 {[%clk 0:03:00]} 6. Bb2 {[%clk 0:02:59]}  e6 {[%clk 0:03:01]} 7. d3 {[%clk 0:02:58]}  Be7 {[%clk 0:03:01]} 8. Nbd2 {[%clk 0:02:59]}  O-O {[%clk 0:03:00]} 9. h3 {[%clk 0:02:59]}  Bh5 {[%clk 0:03:00]} 10. c4 {[%clk 0:02:59]}  a5 {[%clk 0:03:00]} 11. a3 {[%clk 0:02:59]}  Qb6 {[%clk 0:02:59]} 12. Qc2 {[%clk 0:02:58]}  Rac8 {[%clk 0:02:58]} 13. Kh2 {[%clk 0:02:54]}  Bg6 {[%clk 0:02:57]} 14. Rac1 {[%clk 0:02:48]}  h6 {[%clk 0:02:55]} 15. Qb1 {[%clk 0:02:39]}  Rfe8 {[%clk 0:02:54]} 16. Qa1 {[%clk 0:02:37]}  Bf8 {[%clk 0:02:48]} 17. Rfd1 {[%clk 0:02:36]}  e5 {[%clk 0:02:49]} 18. Nxe5 {[%clk 0:02:35]}  Nxe5 {[%clk 0:02:31]} 19. Bxe5 {[%clk 0:02:24]}  Qxf2 {[%clk 0:02:28]} 20. Re1 {[%clk 0:02:07]}  Bxa3 {[%clk 0:02:25]} 21. Bd4 {[%clk 0:01:19]}  Bxc1 {[%clk 0:02:10]} 22. Bxf2 {[%clk 0:01:10]}  Bxd2 {[%clk 0:02:06]} 23. Rd1 {[%clk 0:01:08]}  Rxe2 {[%clk 0:02:07]} 24. Qb2 {[%clk 0:01:00]}  Rxf2 {[%clk 0:02:04]} 25. Rxd2 {[%clk 0:00:55]}  Rxd2 {[%clk 0:01:40]} 26. Qxd2 {[%clk 0:00:55]}  Re8 {[%clk 0:01:41]} 27. cxd5 {[%clk 0:00:56]}  cxd5 {[%clk 0:01:38]} 28. Bf3 {[%clk 0:00:49]}  d4 {[%clk 0:01:36]} 29. Qxa5 {[%clk 0:00:32]}  Re3 {[%clk 0:01:31]} 30. Be4 {[%clk 0:00:27]}  Bxe4 {[%clk 0:01:27]} 31. dxe4 {[%clk 0:00:22]}  Re2+ {[%clk 0:01:10]} 32. Kg1 {[%clk 0:00:20]}  Rxe4 {[%clk 0:01:11]} 33. Qa8+ {[%clk 0:00:20]}  Kh7 {[%clk 0:00:59]} 34. Qxb7 {[%clk 0:00:19]}  Re3 {[%clk 0:00:58]} 35. Qb4 {[%clk 0:00:20]}  Rxg3+ {[%clk 0:00:54]} 36. Kh2 {[%clk 0:00:13]}  Rd3 {[%clk 0:00:50]} 37. Qc4 {[%clk 0:00:13]}  Rd2+ {[%clk 0:00:48]} 38. Kg3 {[%clk 0:00:12]}  d3 {[%clk 0:00:48]} 39. Kf3 {[%clk 0:00:11]}  Rd1 {[%clk 0:00:43]} 40. Ke3 {[%clk 0:00:10]}  d2 {[%clk 0:00:41]} 41. Ke2 {[%clk 0:00:08]}  Rh1 {[%clk 0:00:37]} 42. Qd3+ {[%clk 0:00:08]}  g6 {[%clk 0:00:32]} 43. Kxd2 {[%clk 0:00:08]}  Rh2+ {[%clk 0:00:30]} 44. Kc3 {[%clk 0:00:08]}  Rf2 {[%clk 0:00:23]} 45. Qd4 {[%clk 0:00:08]}  Rf4 {[%clk 0:00:23]} 46. Qd8 {[%clk 0:00:07]}  Kg7 {[%clk 0:00:20]} 47. b4 {[%clk 0:00:05]}  Rf3+ {[%clk 0:00:16]} 48. Kc4 {[%clk 0:00:04]}  Rxh3 {[%clk 0:00:15]} 49. b5 {[%clk 0:00:04]}  Rh1 {[%clk 0:00:14]} 50. b6 {[%clk 0:00:04]}  Rc1+ {[%clk 0:00:12]} 51. Kb3 {[%clk 0:00:04]}  Rb1+ {[%clk 0:00:12]} 52. Kc2 {[%clk 0:00:04]}  Rb5 {[%clk 0:00:12]} 53. Kc1 {[%clk 0:00:03]}  h5 {[%clk 0:00:12]} 54. Kc2 {[%clk 0:00:02]}  h4 {[%clk 0:00:11]} 55. Qd4 {[%clk 0:00:02]}  h3 {[%clk 0:00:11]} 56. Kc3 {[%clk 0:00:02]}  h2 {[%clk 0:00:10]} 57. Qh4 {[%clk 0:00:02]}  Rxb6 {[%clk 0:00:10]} 58. Qxh2 {[%clk 0:00:02]}  Re6 {[%clk 0:00:10]} 59. Kc2 {[%clk 0:00:02]}  g5 {[%clk 0:00:11]} 60. Qg3 {[%clk 0:00:03]}  Kg6 {[%clk 0:00:10]} 61. Qd3+ {[%clk 0:00:03]}  Re4 {[%clk 0:00:11]} 62. Qg3 {[%clk 0:00:03]}  g4 {[%clk 0:00:09]} 63. Qg2 {[%clk 0:00:03]}  Kf5 {[%clk 0:00:10]} 64. Kd3 {[%clk 0:00:04]}  Rf4 {[%clk 0:00:09]} 65. Qc2 {[%clk 0:00:04]}  g3 {[%clk 0:00:08]} 66. Ke3+ {[%clk 0:00:03]}  Kg5 {[%clk 0:00:06]} 67. Qc8 {[%clk 0:00:03]}  Ng4+ {[%clk 0:00:05]} 68. Ke2 {[%clk 0:00:03]}  g2 {[%clk 0:00:05]} 69. Qg8+ {[%clk 0:00:03]}  Kh4 {[%clk 0:00:06]} 70. Qh7+ {[%clk 0:00:03]}  Kg3 {[%clk 0:00:06]} 71. Qb1 {[%clk 0:00:03]}  Rf2+ {[%clk 0:00:07]} 72. Kd3 {[%clk 0:00:03]}  Rf1 {[%clk 0:00:07]} 73. Qb8+ {[%clk 0:00:03]}  Rf4 {[%clk 0:00:07]} 74. Qb1 {[%clk 0:00:03]}  Rf1 {[%clk 0:00:07]} 75. Qb8+ {[%clk 0:00:02]}  Kf2 {[%clk 0:00:06]} 76. Qf4+ {[%clk 0:00:02]}  Ke1 {[%clk 0:00:05]} 77. Qd2# {[%clk 0:00:02]} 1-0


[Site "https://www.chess.com"]

[Event "Titled Tuesday Blitz January 10 Late 2023"]
[White "Costachi, Mihnea"]
[Black "Huber, Benedikt"]
[WhiteFideId "1217518"]
[BlackFideId "12923583"]
[WhiteElo "2476"]
[BlackElo "2272"]
[Result "1-0"]
[Round "02"]
[TimeControl "180+2"]
[Date "2023.01.10"]
[WhiteClock "0:02:27"]
[BlackClock "0:02:39"]

1. e4 {[%clk 0:00:00]}  c5 {[%clk 0:00:00]} 2. Nf3 {[%clk 0:02:59]}  e6 {[%clk 0:02:58]} 3. b3 {[%clk 0:02:58]}  b6 {[%clk 0:02:58]} 4. Bb2 {[%clk 0:02:58]}  Bb7 {[%clk 0:02:54]} 5. Nc3 {[%clk 0:02:57]}  Nf6 {[%clk 0:02:55]} 6. Qe2 {[%clk 0:02:55]}  Be7 {[%clk 0:02:54]} 7. g3 {[%clk 0:02:54]}  d5 {[%clk 0:02:53]} 8. exd5 {[%clk 0:02:54]}  Nxd5 {[%clk 0:02:53]} 9. Bg2 {[%clk 0:02:54]}  O-O {[%clk 0:02:54]} 10. Nxd5 {[%clk 0:02:52]}  Bxd5 {[%clk 0:02:49]} 11. O-O {[%clk 0:02:51]}  Bf6 {[%clk 0:02:49]} 12. Ne5 {[%clk 0:02:51]}  Bxg2 {[%clk 0:02:46]} 13. Kxg2 {[%clk 0:02:45]}  Nc6 {[%clk 0:02:43]} 14. Nxc6 {[%clk 0:02:46]}  Qd5+ {[%clk 0:02:39]} 15. Kg1 {[%clk 0:02:41]}  Bxb2 {[%clk 0:02:39]} 16. Ne7+ {[%clk 0:02:27]} 1-0


[Site "https://www.chess.com"]

[Event "Titled Tuesday Blitz January 10 Late 2023"]
[White "Nazari, Arad"]
[Black "Zampronha, Wladimir Camilo"]
[WhiteFideId "12577324"]
[BlackFideId "2103087"]
[WhiteElo "2367"]
[BlackElo "2176"]
[Result "1-0"]
[Round "02"]
[TimeControl "180+2"]
[Date "2023.01.10"]
[WhiteClock "0:00:07"]
[BlackClock "0:00:12"]

1. e4 {[%clk 0:00:00]}  c5 {[%clk 0:00:00]} 2. Nf3 {[%clk 0:02:57]}  e6 {[%clk 0:03:00]} 3. b3 {[%clk 0:02:57]}  d5 {[%clk 0:03:00]} 4. Bb5+ {[%clk 0:02:56]}  Nc6 {[%clk 0:02:59]} 5. Bb2 {[%clk 0:02:48]}  Nf6 {[%clk 0:02:58]} 6. Ne5 {[%clk 0:02:46]}  Bd7 {[%clk 0:02:48]} 7. exd5 {[%clk 0:02:42]}  Nxe5 {[%clk 0:02:45]} 8. Bxd7+ {[%clk 0:02:41]}  Nexd7 {[%clk 0:02:31]} 9. dxe6 {[%clk 0:02:41]}  fxe6 {[%clk 0:02:30]} 10. Qe2 {[%clk 0:02:42]}  Bd6 {[%clk 0:02:26]} 11. O-O {[%clk 0:02:42]}  Qe7 {[%clk 0:02:24]} 12. Nc3 {[%clk 0:02:40]}  O-O {[%clk 0:02:22]} 13. h3 {[%clk 0:02:38]}  Rae8 {[%clk 0:02:21]} 14. Rfe1 {[%clk 0:02:36]}  Qf7 {[%clk 0:02:20]} 15. Rf1 {[%clk 0:02:35]}  Bb8 {[%clk 0:02:17]} 16. Rae1 {[%clk 0:02:15]}  Nd5 {[%clk 0:02:15]} 17. Ne4 {[%clk 0:01:08]}  Qf4 {[%clk 0:02:15]} 18. Ng3 {[%clk 0:01:05]}  Qf7 {[%clk 0:01:53]} 19. d3 {[%clk 0:00:59]}  Bxg3 {[%clk 0:01:53]} 20. fxg3 {[%clk 0:00:54]}  Qg6 {[%clk 0:01:24]} 21. Rxf8+ {[%clk 0:00:55]}  Nxf8 {[%clk 0:01:24]} 22. Kh2 {[%clk 0:00:50]}  b6 {[%clk 0:01:25]} 23. d4 {[%clk 0:00:46]}  cxd4 {[%clk 0:01:25]} 24. Bxd4 {[%clk 0:00:43]}  Rc8 {[%clk 0:01:20]} 25. c4 {[%clk 0:00:44]}  Nb4 {[%clk 0:01:14]} 26. Rf1 {[%clk 0:00:42]}  Nc6 {[%clk 0:01:12]} 27. Bc3 {[%clk 0:00:40]}  e5 {[%clk 0:01:07]} 28. c5 {[%clk 0:00:39]}  Qe6 {[%clk 0:01:03]} 29. cxb6 {[%clk 0:00:37]}  axb6 {[%clk 0:00:45]} 30. Bb2 {[%clk 0:00:32]}  Re8 {[%clk 0:00:46]} 31. Qe4 {[%clk 0:00:33]}  Ng6 {[%clk 0:00:44]} 32. Rc1 {[%clk 0:00:31]}  Nd4 {[%clk 0:00:34]} 33. Bxd4 {[%clk 0:00:31]}  exd4 {[%clk 0:00:33]} 34. Qxd4 {[%clk 0:00:29]}  Ne5 {[%clk 0:00:32]} 35. Qc3 {[%clk 0:00:30]}  Nf7 {[%clk 0:00:26]} 36. a4 {[%clk 0:00:23]}  Qe2 {[%clk 0:00:24]} 37. b4 {[%clk 0:00:23]}  Qa2 {[%clk 0:00:22]} 38. a5 {[%clk 0:00:22]}  bxa5 {[%clk 0:00:20]} 39. bxa5 {[%clk 0:00:20]}  Qa4 {[%clk 0:00:20]} 40. Ra1 {[%clk 0:00:21]}  Qd7 {[%clk 0:00:20]} 41. a6 {[%clk 0:00:19]}  Ra8 {[%clk 0:00:20]} 42. Qc4 {[%clk 0:00:19]}  h6 {[%clk 0:00:19]} 43. h4 {[%clk 0:00:18]}  Ra7 {[%clk 0:00:18]} 44. Ra2 {[%clk 0:00:15]}  Kh8 {[%clk 0:00:19]} 45. Ra1 {[%clk 0:00:09]}  Nd6 {[%clk 0:00:19]} 46. Qd5 {[%clk 0:00:07]}  Nb5 {[%clk 0:00:20]} 47. Qc5 {[%clk 0:00:07]}  Nd4 {[%clk 0:00:19]} 48. Rd1 {[%clk 0:00:06]}  Nf3+ {[%clk 0:00:16]} 49. gxf3 {[%clk 0:00:05]}  Qxd1 {[%clk 0:00:14]} 50. Qxa7 {[%clk 0:00:06]}  Qe2+ {[%clk 0:00:14]} 51. Kh3 {[%clk 0:00:06]}  Qe6+ {[%clk 0:00:14]} 52. g4 {[%clk 0:00:07]}  Qe2 {[%clk 0:00:13]} 53. Qa8+ {[%clk 0:00:06]}  Kh7 {[%clk 0:00:12]} 54. Qe4+ {[%clk 0:00:07]} 1-0


[Site "https://www.chess.com"]